bitfinex-derivatives/quotes_BNBF0:USTF0_20250211
["timestamp","ask_amount","ask_price","bid_price","bid_amount"]
[1739247074426,0.867316,621.45,620.22,0.32246622]
[1739247074628,0.867316,621.44,620.22,0.32246622]
[1739247074828,0.867316,621.43,620.22,0.32246622]
[1739247075128,0.867316,621.42,620.22,0.32246622]
[1739247075327,0.867316,621.41,620.22,0.32246622]
[1739247075628,1.95942075,621.4,620.22,0.32246622]
[1739247075928,0.867316,621.39,620.22,0.32246622]
[1739247076627,1.09210475,621.38,620.22,0.32246622]
[1739247076827,0.867316,621.37,620.22,0.64246622]
[1739247077027,1.09210475,621.38,620.22,0.64246622]
[1739247077828,1.09210475,621.46,620.22,0.64246622]
[1739247078128,0.86755201,621.45,620.22,0.64246622]
[1739247078323,3.34775004,621.45,620.22,0.64246622]
[1739247078524,2.25564529,621.44,620.22,0.64246622]
[1739247079431,2.8588049,621.43,620.22,0.64246622]
[1739247079625,2.25564529,621.42,620.22,0.64246622]
[1739247080132,2.8588049,621.41,620.22,0.64246622]
[1739247080331,0.86755201,621.4,620.22,0.64246622]
[1739247080532,0.32186423,621.38,620.22,0.32]
[1739247080732,2.25581792,621.37,620.22,0.32]
[1739247080933,2.57842889,621.36,620.22,0.32]
[1739247081132,2.2565543,621.35,620.22,0.32]
[1739247081328,2.2565543,621.34,620.22,0.32]
[1739247081525,2.2565543,621.33,620.22,0.32]
[1739247081729,2.2565543,621.32,620.22,0.32]
[1739247081932,2.2565543,621.31,620.22,0.32]
[1739247082131,2.57845998,621.3,620.22,0.32]
[1739247082333,2.57846516,621.29,620.22,0.32]
[1739247082533,2.57847034,621.28,620.22,0.32]
[1739247082735,2.57847552,621.27,620.22,0.32]
[1739247082935,2.5784807,621.26,620.22,0.32]
[1739247083235,2.57848588,621.25,620.22,0.32]
[1739247083436,2.57849107,621.24,620.22,0.32]
[1739247083634,2.2565543,621.23,620.22,0.32]
[1739247083936,2.57850143,621.22,620.22,0.32]
[1739247084136,2.57850661,621.21,620.22,0.32]
[1739247084333,2.2565543,621.2,620.22,0.32]
[1739247084735,0.32196268,621.19,620.22,0.32]
[1739247084936,4.04867308,621.19,620.22,0.32]
[1739247085137,2.2565543,621.18,620.22,0.32]
[1739247085336,5.1153592,621.18,620.22,0.32]
[1739247085536,2.2565543,621.17,620.22,0.32]
[1739247085734,2.25107335,621.16,620.22,0.32]
[1739247085935,0.86579744,621.15,620.22,0.32]
[1739247086135,0.86579744,621.14,620.22,0.32]
[1739247086632,1.09210475,621.13,620.22,0.32]
[1739247086839,0.86579744,621.12,620.22,0.32]
[1739247087438,0.86547547,621.11,620.22,0.32]
[1739247087636,1.09210475,621.11,620.22,0.32]
[1739247088034,0.32196268,621.19,620.22,0.32]
[1739247088240,0.86546552,621.18,620.22,0.32]
[1739247088738,1.09210475,621.17,620.22,0.32]
[1739247088938,0.86546552,621.16,620.22,0.32]
[1739247089633,0.86500153,621.15,620.22,0.32]
[1739247089839,0.86500153,621.14,620.22,0.32]
[1739247090142,0.86500153,621.13,620.22,0.32]
[1739247090336,1.09210475,621.14,620.22,0.32]
[1739247090937,0.32196268,621.19,620.22,0.32]
[1739247091242,0.86478948,621.18,620.22,0.32]
[1739247092144,1.09210475,621.17,620.22,0.32]
[1739247092442,0.86478948,621.16,620.22,0.32]
[1739247092643,1.09210475,621.15,620.22,0.32]
[1739247092943,0.86478948,621.14,620.22,0.32]
[1739247093543,1.09210475,621.13,620.22,0.32]
[1739247093745,0.86478948,621.12,620.22,0.32]
[1739247094647,1.09210475,621.11,620.22,0.32]
[1739247094845,0.86478948,621.1,620.22,0.32]
[1739247095347,1.09210475,621.09,620.22,0.32]
[1739247096045,0.32196268,621.19,620.22,0.32]
[1739247096246,0.86378064,621.18,620.22,0.32]
[1739247096642,1.09210475,621.17,620.22,0.32]
[1739247096947,0.86378064,621.16,620.22,0.32]
[1739247097343,1.95588539,621.15,620.22,0.32]
[1739247097548,0.86378064,621.14,620.22,0.32]
[1739247097848,1.09210475,621.13,620.22,0.32]
[1739247098049,0.86378064,621.12,620.22,0.32]
[1739247098348,1.09210475,621.13,620.22,0.32]
[1739247099145,0.32196268,621.19,620.22,0.32]
[1739247099347,0.86323407,621.18,620.22,0.32]
[1739247099851,1.09210475,621.17,620.22,0.32]
[1739247100051,0.86323407,621.16,620.22,0.32]
[1739247100649,1.09210475,621.15,620.22,0.32]
[1739247101454,0.32196268,621.19,620.22,0.32]
[1739247101656,0.86301636,621.18,620.22,0.32]
[1739247102057,1.09210475,621.17,620.22,0.32]
[1739247102256,0.86301636,621.16,620.22,0.32]
[1739247102756,1.09210475,621.15,620.22,0.32]
[1739247103157,0.86294926,621.14,620.22,0.32]
[1739247103959,1.09210475,621.13,620.22,0.32]
[1739247104759,0.32196268,621.19,620.22,0.32]
[1739247104957,0.8627484,621.18,620.22,0.32]
[1739247105353,1.09210475,621.17,620.22,0.32]
[1739247105559,0.8627484,621.16,620.22,0.32]
[1739247106055,1.9547888,621.15,620.22,0.32]
[1739247106255,1.9547888,621.14,620.22,0.32]
[1739247106454,1.09210475,621.14,620.22,0.32]
[1739247107160,0.32196268,621.19,620.22,0.32]
[1739247107359,0.86259438,621.18,620.22,0.32]
[1739247107560,0.86259205,621.17,620.22,0.32]
[1739247107754,0.86259205,621.16,620.22,0.32]
[1739247107959,0.86259205,621.15,620.22,0.32]
[1739247108464,1.09210475,621.14,620.22,0.32]
[1739247108665,0.86259205,621.13,620.22,0.32]
[1739247108860,1.09210475,621.12,620.22,0.32]
[1739247109855,0.32196268,621.19,620.22,0.32]
[1739247110060,0.86256245,621.18,620.22,0.32]
[1739247110462,1.09210475,621.17,620.22,0.32]
[1739247110661,0.86256245,621.16,620.22,0.32]
[1739247111162,1.09210475,621.15,620.22,0.32]
[1739247111463,0.86256245,621.14,620.22,0.32]
[1739247111865,0.86270744,621.13,620.22,0.32]
[1739247112064,1.09210475,621.15,620.22,0.32]
[1739247112665,0.32196268,621.19,620.22,0.32]
[1739247112865,0.86280299,621.18,620.22,0.32]
[1739247113265,1.09210475,621.17,620.22,0.32]
[1739247113462,0.86280299,621.16,620.22,0.32]
[1739247114066,0.8629481,621.15,620.22,0.32]
[1739247114267,0.86307566,621.14,620.22,0.32]
[1739247114469,0.86307566,621.13,620.22,0.32]
[1739247114671,1.09210475,621.13,620.22,0.32]
[1739247115067,0.86308831,621.12,620.22,0.32]
[1739247115468,1.09210475,621.11,620.22,0.32]
[1739247116870,0.32196268,621.19,620.22,0.32]
[1739247117070,0.86325417,621.18,620.22,0.32]
[1739247117265,0.32197305,621.17,620.22,0.32]
[1739247117471,1.09210475,621.16,620.22,0.32]
[1739247117668,1.95535892,621.16,620.22,0.32]
[1739247117866,2.27734233,621.15,620.22,0.32]
[1739247118068,1.18524277,621.14,620.22,0.32]
[1739247118268,1.18524795,621.13,620.22,0.32]
[1739247118470,1.18525313,621.12,620.22,0.32]
[1739247118670,1.18525832,621.11,620.22,0.32]
[1739247118970,1.1852635,621.1,620.22,0.32]
[1739247119170,0.86325417,621.09,620.22,0.32]
[1739247119672,3.72205907,621.09,620.22,0.32]
[1739247119873,0.86325417,621.08,620.22,0.32]
[1739247120371,1.09210475,621.07,620.22,0.32]
[1739247120575,0.86325417,621.06,620.22,0.32]
[1739247121075,1.09210475,621.05,620.22,0.32]
[1739247121275,0.86325417,621.04,620.22,0.32]
[1739247121478,1.09210475,621.05,620.22,0.32]
[1739247121677,0.86345518,621.04,620.22,0.32]
[1739247122476,1.09210475,621.03,620.22,0.32]
[1739247122775,0.86363706,621.02,620.22,0.32]
[1739247123275,1.09210475,621.01,620.22,0.32]
[1739247123672,0.32200933,621.1,620.22,0.32]
[1739247123871,0.86368158,621.09,620.22,0.32]
[1739247124075,0.86368199,621.08,620.22,0.32]
[1739247124372,0.86368199,621.07,620.22,0.32]
[1739247125270,1.09210475,621.06,620.22,0.32]
[1739247125473,0.86368199,621.05,620.22,0.32]
[1739247126071,1.09210475,621.04,620.22,0.32]
[1739247126276,0.86368199,621.03,620.22,0.32]
[1739247127478,1.09210475,621.02,620.22,0.32]
[1739247128480,0.32200933,621.1,620.22,0.32]
[1739247134485,0.86590142,621.09,620.22,0.32]
[1739247134785,0.32200933,621.1,620.22,0.32]
[1739247134984,1.09210475,621.08,620.22,0.32]
[1739247136086,0.32200933,621.1,620.22,0.32]
[1739247136279,0.86621255,621.09,620.22,0.32]
[1739247136786,1.09210475,621.08,620.22,0.32]
[1739247136985,0.86653505,621.07,620.22,0.32]
[1739247137285,1.09210475,621.06,620.22,0.32]
[1739247137980,3.34640548,621.05,620.22,0.32]
[1739247138182,2.25430073,621.04,620.22,0.32]
[1739247138382,0.8669375,621.03,620.22,0.32]
[1739247138579,2.25430073,621.03,620.22,0.32]
[1739247138979,3.72782703,621.02,620.22,0.32]
[1739247139184,2.25430073,621.01,620.22,0.32]
[1739247139384,2.25558915,621.0,620.22,0.32]
[1739247139585,2.25558915,620.99,620.22,0.32]
[1739247139889,0.86753429,620.98,620.22,0.32]
[1739247140380,0.86753429,620.97,620.22,0.32]
[1739247140588,0.86753429,620.96,620.22,0.32]
[1739247140786,0.86753429,620.95,620.22,0.32]
[1739247140987,0.86753429,620.94,620.22,0.32]
[1739247141188,0.86753429,620.93,620.22,0.32]
[1739247141984,1.09210475,620.92,620.22,0.32]
[1739247142186,0.86753429,620.91,620.22,0.32]
[1739247142881,1.09210475,620.9,620.22,0.32]
[1739247143085,0.86753429,620.89,620.22,0.32]
[1739247143482,1.09210475,620.88,620.22,0.32]
[1739247144285,1.09210475,620.87,620.22,0.32]
[1739247144990,1.09210475,620.86,620.22,0.32]
[1739247145790,1.09210475,620.85,620.22,0.32]
[1739247146694,1.09210475,621.03,620.22,0.32]
[1739247146891,2.25828066,621.02,620.22,0.32]
[1739247147092,0.86856948,621.01,620.22,0.32]
[1739247147293,0.86855277,621.0,620.22,0.32]
[1739247147493,1.96065752,620.99,620.22,0.32]
[1739247147693,2.25823721,620.98,620.22,0.32]
[1739247147893,3.7294423,620.97,620.22,0.32]
[1739247148194,0.86855277,620.96,620.22,0.32]
[1739247148394,0.86855277,620.95,620.22,0.32]
[1739247148589,0.86855277,620.94,620.22,0.32]
[1739247148795,0.86855277,620.93,620.22,0.32]
[1739247148995,0.86855277,620.92,620.22,0.32]
[1739247149196,0.86855277,620.91,620.22,0.32]
[1739247149496,0.86855277,620.9,620.22,0.32]
[1739247149697,0.86855277,620.89,620.22,0.32]
[1739247149897,0.86855277,620.88,620.22,0.32]
[1739247150092,0.86855277,620.87,620.22,0.32]
[1739247150293,0.86855277,620.86,620.22,0.32]
[1739247150496,1.96065752,620.85,620.22,0.32]
[1739247150694,2.25844367,620.84,620.22,0.32]
[1739247151298,2.86088953,620.83,620.22,0.32]
[1739247151491,2.25844367,620.82,620.22,0.32]
[1739247152098,2.86088953,620.81,620.22,0.32]
[1739247152298,0.86855277,620.8,620.22,0.32]
[1739247152799,1.09210475,620.79,620.22,0.32]
[1739247152999,0.86855277,620.78,620.22,0.32]
[1739247153799,1.09210475,620.77,620.22,0.32]
[1739247153999,0.86695437,620.76,620.22,0.32]
[1739247154399,1.09210475,620.75,620.22,0.32]
[1739247154699,0.86695437,620.74,620.22,0.32]
[1739247155096,1.09210475,620.73,620.22,0.32]
[1739247155901,2.86088953,621.05,620.22,0.32]
[1739247156202,2.87114651,621.04,620.22,0.32]
[1739247156403,2.8711517,621.03,620.22,0.32]
[1739247156598,2.57510564,621.02,620.22,0.32]
[1739247156796,2.57511083,621.01,620.22,0.32]
[1739247157000,5.43600555,621.0,620.22,0.32]
[1739247157201,2.5751212,620.99,620.22,0.32]
[1739247157398,2.57512639,620.98,620.22,0.32]
[1739247157597,2.57423008,620.97,620.22,0.32]
[1739247157801,2.57423526,620.96,620.22,0.32]
[1739247158002,2.57424045,620.95,620.22,0.32]
[1739247158201,2.57424564,620.94,620.22,0.32]
[1739247158402,2.57425082,620.93,620.22,0.32]
[1739247158600,2.57425601,620.92,620.22,0.32]
[1739247158900,2.5742612,620.91,620.22,0.32]
[1739247159104,2.57426639,620.9,620.22,0.32]
[1739247159300,2.25215333,620.89,620.22,0.32]
[1739247159503,2.25215333,620.88,620.22,0.32]
[1739247159704,2.25215333,620.87,620.22,0.32]
[1739247159901,2.25215333,620.86,620.22,0.32]
[1739247160105,2.25215333,620.85,620.22,0.32]
[1739247160806,2.86088953,620.84,620.22,0.32]
[1739247161106,0.86621282,620.83,620.22,0.32]
[1739247161307,1.09210475,620.82,620.22,0.32]
[1739247161506,0.86621282,620.81,620.22,0.32]
[1739247162406,1.19745275,621.48,620.22,0.32]
[1739247162407,1.9579023,620.8,620.22,0.32]
[1739247162603,0.86579755,620.79,620.22,0.32]
[1739247163208,1.09210475,620.78,620.22,0.32]
[1739247163403,0.86579755,620.77,620.22,0.32]
[1739247163604,1.09210475,620.78,620.22,0.32]
[1739247164109,2.86088953,621.43,620.22,0.32]
[1739247164305,2.54659715,621.42,620.22,0.32]
[1739247164503,2.54659715,621.41,620.22,0.32]
[1739247164702,2.25055504,621.4,620.22,0.32]
[1739247165003,2.54659911,621.39,620.22,0.32]
[1739247165206,2.54659911,621.38,620.22,0.32]
[1739247165406,2.54659911,621.37,620.22,0.32]
[1739247165607,2.54659911,621.36,620.22,0.32]
[1739247165903,2.54659911,621.35,620.22,0.32]
[1739247166107,2.54642215,621.34,620.22,0.32]
[1739247166302,2.54642215,621.33,620.22,0.32]
[1739247166505,2.54642215,621.32,620.22,0.32]
[1739247166708,2.54642215,621.31,620.22,0.32]
[1739247166907,2.54642215,621.3,620.22,0.32]
[1739247167108,5.40731168,621.29,620.22,0.32]
[1739247167307,2.54642215,621.28,620.22,0.32]
[1739247167506,2.54642215,621.27,620.22,0.32]
[1739247167706,5.11126761,621.26,620.22,0.32]
[1739247167904,2.25037808,621.25,620.22,0.32]
[1739247168106,2.25037808,621.24,620.22,0.32]
[1739247168309,2.25037808,621.23,620.22,0.32]
[1739247168512,2.25037808,621.22,620.22,0.32]
[1739247168711,2.25037808,621.21,620.22,0.32]
[1739247169007,2.25037808,621.2,620.22,0.32]
[1739247169209,0.86553003,621.19,620.22,0.32]
[1739247169407,0.86553003,621.18,620.22,0.32]
[1739247169613,0.86553003,621.17,620.22,0.32]
[1739247169811,0.86553003,621.16,620.22,0.32]
[1739247170011,0.86553003,621.15,620.22,0.32]
[1739247170313,0.86553003,621.14,620.22,0.32]
[1739247170512,0.86553003,621.13,620.22,0.32]
[1739247170714,0.86553003,621.12,620.22,0.32]
[1739247171020,0.86553003,621.11,620.22,0.32]
[1739247171213,0.86553003,621.1,620.22,0.32]
[1739247171406,3.72641956,621.09,620.22,0.32]
[1739247171610,2.25037808,621.08,620.22,0.32]
[1739247171811,0.86553003,621.07,620.22,0.32]
[1739247172007,0.86553003,621.06,620.22,0.32]
[1739247172308,0.86553003,621.05,620.22,0.32]
[1739247172509,0.86553003,621.04,620.22,0.32]
[1739247172711,0.86553003,621.03,620.22,0.32]
[1739247172911,0.86541272,621.02,620.22,0.32]
[1739247173109,0.86541272,621.01,620.22,0.32]
[1739247173315,0.86541272,621.0,620.22,0.32]
[1739247173509,0.86541272,620.99,620.22,0.32]
[1739247173713,0.86541272,620.98,620.22,0.32]
[1739247173913,0.86541272,620.97,620.22,0.32]
[1739247174110,0.86541272,620.96,620.22,0.32]
[1739247174311,0.86541272,620.95,620.22,0.32]
[1739247174513,0.86541272,620.94,620.22,0.32]
[1739247174711,0.86547656,620.93,620.22,0.32]
[1739247174912,0.86547656,620.92,620.22,0.32]
[1739247175113,0.86547656,620.91,620.22,0.32]
[1739247175409,0.86547656,620.9,620.22,0.32]
[1739247175611,0.86547656,620.89,620.22,0.32]
[1739247176015,2.25028658,620.89,620.22,0.32]
[1739247176216,1.95758131,620.88,620.22,0.32]
[1739247176414,0.86547656,620.87,620.22,0.32]
[1739247176611,1.09210475,620.86,620.22,0.32]
[1739247176813,0.86547656,620.85,620.22,0.32]
[1739247177414,1.09210475,620.84,620.22,0.32]
[1739247177709,0.86547656,620.83,620.22,0.32]
[1739247178112,1.09210475,620.82,620.22,0.32]
[1739247178313,0.86547656,620.81,620.22,0.32]
[1739247178918,0.86547826,620.8,620.22,0.32]
[1739247179114,0.86547826,620.79,620.22,0.32]
[1739247179317,1.09210475,620.79,620.22,0.32]
[1739247179921,2.86088953,621.25,620.22,0.32]
[1739247180121,2.54626765,621.24,620.22,0.32]
[1739247180316,2.54626765,621.23,620.22,0.32]
[1739247180522,2.54626765,621.22,620.22,0.32]
[1739247180716,2.54626765,621.21,620.22,0.32]
[1739247180920,2.54626765,621.2,620.22,0.32]
[1739247181116,5.40715718,621.19,620.22,0.32]
[1739247181322,2.54626765,621.18,620.22,0.32]
[1739247181523,2.54626765,621.17,620.22,0.32]
[1739247181823,2.54626765,621.16,620.22,0.32]
[1739247182124,2.54626765,621.15,620.22,0.32]
[1739247182323,2.54626765,621.14,620.22,0.32]
[1739247182521,2.54622606,621.13,620.22,0.32]
[1739247182722,2.54622606,621.12,620.22,0.32]
[1739247182922,2.54622606,621.11,620.22,0.32]
[1739247183120,2.54622606,621.1,620.22,0.32]
[1739247183320,2.54622606,621.09,620.22,0.32]
[1739247183524,2.54622606,621.08,620.22,0.32]
[1739247183727,2.54622606,621.07,620.22,0.32]
[1739247184023,2.54622606,621.06,620.22,0.32]
[1739247184221,2.54622606,621.05,620.22,0.32]
[1739247184427,2.54622606,621.04,620.22,0.32]
[1739247184722,2.25017475,621.03,620.22,0.32]
[1739247184925,0.86545183,621.02,620.22,0.32]
[1739247185130,0.86545183,621.01,620.22,0.32]
[1739247185426,3.72634136,621.0,620.22,0.32]
[1739247185626,2.57224112,620.99,620.22,0.32]
[1739247185925,2.57224631,620.98,620.22,0.32]
[1739247186125,2.5722515,620.97,620.22,0.32]
[1739247186325,5.11106428,620.96,620.22,0.32]
[1739247186525,2.25017475,620.95,620.22,0.32]
[1739247186727,2.25006775,620.94,620.22,0.32]
[1739247186927,2.25006775,620.93,620.22,0.32]
[1739247187127,2.25011398,620.92,620.22,0.32]
[1739247187628,2.86088953,620.91,620.22,0.32]
[1739247187830,2.25011398,620.9,620.22,0.32]
[1739247188226,2.86088953,620.89,620.22,0.32]
[1739247188425,2.25011398,620.88,620.22,0.32]
[1739247188731,2.86088953,620.87,620.22,0.32]
[1739247188929,2.25011398,620.86,620.22,0.32]
[1739247189425,1.09210475,620.85,620.22,0.32]
[1739247189630,0.86542845,620.84,620.22,0.32]
[1739247190330,2.25034159,620.84,620.22,0.32]
[1739247190530,1.09210475,620.83,620.22,0.32]
[1739247190729,0.86542845,620.82,620.22,0.32]
[1739247190930,1.9575332,620.82,620.22,0.32]
[1739247191130,0.86542845,620.81,620.22,0.32]
[1739247191832,1.09210475,620.8,620.22,0.32]
[1739247192128,1.9575332,620.79,620.22,0.32]
[1739247192331,0.86542845,620.78,620.22,0.32]
[1739247192930,1.09210475,620.77,620.22,0.32]
[1739247193131,0.86542845,620.76,620.22,0.32]
[1739247193331,0.8663335,620.75,620.22,0.32]
[1739247193529,0.8663335,620.74,620.22,0.32]
[1739247193730,0.8663335,620.73,620.22,0.32]
[1739247194332,1.09210475,620.72,620.22,0.32]
[1739247194634,0.8663335,620.71,620.22,0.32]
[1739247195326,1.09210475,620.7,620.22,0.32]
[1739247195531,0.86685219,620.69,620.22,0.32]
[1739247195932,1.09210475,620.68,620.22,0.32]
[1739247196133,0.86685219,620.67,620.22,0.32]
[1739247196935,1.09210475,620.66,620.22,0.32]
[1739247197132,0.86685219,620.65,620.22,0.32]
[1739247197734,1.09210475,620.64,620.22,0.32]
[1739247197928,0.86685219,620.63,620.22,0.32]
[1739247198334,1.09210475,620.62,620.22,0.32]
[1739247198533,0.86685219,620.61,620.22,0.32]
[1739247199135,1.09210475,620.6,620.22,0.32]
[1739247200027,0.32208712,620.95,620.22,0.32]
[1739247200028,1.09210475,620.59,620.22,0.32]
[1739247200830,1.09210475,620.58,620.22,0.32]
[1739247201633,1.09210475,620.57,620.22,0.32]
[1739247202439,1.09210475,620.56,620.22,0.32]
[1739247203132,1.09210475,620.55,620.22,0.32]
[1739247203738,1.09210475,620.54,620.22,0.32]
[1739247204339,1.09210475,620.53,620.22,0.32]
[1739247204937,1.09210475,620.52,620.22,0.32]
[1739247205638,1.09210475,620.51,620.22,0.32]
[1739247206140,1.09210475,620.75,620.22,0.32]
[1739247206836,1.09210475,620.74,620.22,0.32]
[1739247207633,1.09210475,620.92,620.22,0.32]
[1739247207833,0.86873745,620.91,620.22,0.32]
[1739247208039,0.86873745,620.9,620.22,0.32]
[1739247208239,0.86873745,620.89,620.22,0.32]
[1739247208434,1.09210475,620.89,620.22,0.32]
[1739247208634,0.86850243,620.88,620.22,0.32]
[1739247209135,1.09210475,620.87,620.22,0.32]
[1739247209437,0.86850243,620.86,620.22,0.32]
[1739247209635,1.96060718,620.86,620.22,0.32]
[1739247209837,0.86850243,620.85,620.22,0.32]
[1739247210240,1.09210475,620.85,620.22,0.32]
[1739247210840,1.09210475,620.84,620.22,0.32]
[1739247211735,0.32208712,620.95,620.22,0.32]
[1739247211736,1.09210475,620.83,620.22,0.32]
[1739247212642,1.09210475,620.94,620.22,0.32]
[1739247212941,0.86767616,620.93,620.22,0.32]
[1739247213143,1.95978091,620.93,620.22,0.32]
[1739247213340,0.86767616,620.92,620.22,0.32]
[1739247213538,1.95978091,620.92,620.22,0.32]
[1739247213739,0.86767616,620.91,620.22,0.32]
[1739247214238,1.09210475,620.9,620.22,0.32]
[1739247214441,0.86767616,620.89,620.22,0.32]
[1739247214940,1.09210475,620.88,620.22,0.32]
[1739247215141,1.9595004,620.87,620.22,0.32]
[1739247215441,0.86739565,620.86,620.22,0.32]
[1739247215641,1.09210475,620.87,620.22,0.32]
[1739247215942,1.09210475,620.86,620.22,0.32]
[1739247216443,1.09210475,620.94,620.22,0.32]
[1739247216742,0.86717268,620.93,620.22,0.32]
[1739247216943,1.09210475,620.92,620.22,0.32]
[1739247217142,0.86717268,620.91,620.22,0.32]
[1739247217746,1.09210475,620.9,620.22,0.32]
[1739247217945,0.86717268,620.89,620.22,0.32]
[1739247218445,1.09210475,620.88,620.22,0.32]
[1739247218646,1.95927743,620.87,620.22,0.32]
[1739247218848,1.09210475,620.87,620.22,0.32]
[1739247219048,0.86697914,620.86,620.22,0.32]
[1739247219347,0.86693762,620.85,620.22,0.32]
[1739247219648,0.86693762,620.92,620.22,0.32]
[1739247219849,0.86691726,620.91,620.22,0.32]
[1739247220351,0.86691726,620.9,620.22,0.32]
[1739247221150,1.09210475,620.93,620.22,0.32]
[1739247221553,0.86685792,620.92,620.22,0.32]
[1739247222450,1.09210475,620.93,620.22,0.32]
[1739247222751,0.8668272,620.92,620.22,0.32]
[1739247223451,1.09210475,620.91,620.22,0.32]
[1739247223751,1.95893195,620.9,620.22,0.32]
[1739247223950,0.8668272,620.89,620.22,0.32]
[1739247224456,1.09210475,620.88,620.22,0.32]
[1739247224753,0.86671305,620.87,620.22,0.32]
[1739247225054,1.09210475,620.86,620.22,0.32]
[1739247225954,1.09210475,620.93,620.22,0.32]
[1739247226153,0.86666124,620.92,620.22,0.32]
[1739247226658,1.09210475,620.91,620.22,0.32]
[1739247226954,0.86666124,620.9,620.22,0.32]
[1739247227454,1.09210475,620.89,620.22,0.32]
[1739247227754,0.86666124,620.88,620.22,0.32]
[1739247228256,1.09210475,620.87,620.22,0.32]
[1739247229353,1.09210475,620.93,620.22,0.32]
[1739247229547,0.8664805,620.92,620.22,0.32]
[1739247229748,1.95858525,620.92,620.22,0.32]
[1739247229953,0.8664805,620.91,620.22,0.32]
[1739247230655,1.09210475,620.9,620.22,0.32]
[1739247230856,0.8664805,620.89,620.22,0.32]
[1739247231156,0.86643303,620.88,620.22,0.32]
[1739247231456,0.86643303,620.87,620.22,0.32]
[1739247231655,1.09210475,620.86,620.22,0.32]
[1739247232455,1.76878478,620.94,620.22,0.32]
[1739247232456,1.09210475,620.93,620.22,0.32]
[1739247232655,0.86638043,620.92,620.22,0.32]
[1739247232851,1.95848518,620.92,620.22,0.32]
[1739247233053,0.86638043,620.91,620.22,0.32]
[1739247233458,1.09210475,620.9,620.22,0.32]
[1739247233658,0.86638043,620.89,620.22,0.32]
[1739247234358,1.09210475,620.88,620.22,0.32]
[1739247235658,1.09210475,620.93,620.22,0.32]
[1739247235858,0.86630577,620.92,620.22,0.32]
[1739247236159,1.95841052,620.92,620.22,0.32]
[1739247236460,0.86630577,620.91,620.22,0.32]
[1739247236654,1.95841052,620.91,620.22,0.32]
[1739247236860,0.86630577,620.9,620.22,0.32]
[1739247237055,1.95841052,620.9,620.22,0.32]
[1739247237255,0.86630577,620.89,620.22,0.32]
[1739247237655,1.95850205,620.88,620.22,0.32]
[1739247237857,0.8663973,620.87,620.22,0.32]
[1739247238260,1.09210475,620.86,620.22,0.32]
[1739247238454,0.8663973,620.85,620.22,0.32]
[1739247238655,1.09210475,620.84,620.22,0.32]
[1739247238855,0.8663973,620.83,620.22,0.32]
[1739247239561,1.09210475,620.82,620.22,0.32]
[1739247239762,0.8663973,620.81,620.22,0.32]
[1739247240263,1.09210475,620.8,620.22,0.32]
[1739247241657,1.09210475,620.93,620.22,0.32]
[1739247241861,2.25279691,620.92,620.22,0.32]
[1739247242262,2.86088953,620.91,620.22,0.32]
[1739247242462,2.25279691,620.9,620.22,0.32]
[1739247242866,2.86088953,620.89,620.22,0.32]
[1739247243069,0.86646035,620.88,620.22,0.32]
[1739247243365,1.09210475,620.87,620.22,0.32]
[1739247243566,0.86646035,620.86,620.22,0.32]
[1739247244062,1.09210475,620.85,620.22,0.32]
[1739247244268,0.86646035,620.84,620.22,0.32]
[1739247244561,1.9585651,620.84,620.22,0.32]
[1739247244764,0.86646035,620.83,620.22,0.32]
[1739247244968,0.86652355,620.82,620.22,0.32]
[1739247245170,0.86652355,620.81,620.22,0.32]